[Event "55th Rubinstein Memorial-C 2019"]
[Site "Polanica-Zdroj"]
[Date "2019.08.23"]
[Round "7.10"]
[White "Kolodziejski, Piotr"]
[Black "Obrochta, Lena"]
[Result "1-0"]
[ECO "B40"]
[WhiteElo "1701"]
[BlackElo "1870"]
[Annotator "NA"]
[PlyCount "143"]
[EventDate "2019.08.17"]
[EventType "swiss"]
[EventCountry "POL"]
[SourceTitle "playchess.com"]
[Source "ChessBase"]
[SourceQuality "1"]
[TimeControl "40/5400+30:1800+30"]

1. e4 {[%emt 0:00:00]} c5 {[%emt 0:00:00]} 2. Nf3 {[%emt 0:00:00]} e6 {[%emt 0:00:00]} 3. d3 {[%emt 0:00:00]} d6 {[%emt 0:01:10]} 4. g3 {[%emt 0:00:39]} Nf6 {[%emt 0:00:38]} 5. Bg2 {[%emt 0:00:32]} Be7 {[%emt 0:00:16]} 6. O-O {[%emt 0:01:16]} O-O {[%emt 0:00:25]} 7. Qe2 {[%emt 0:03:56]} Nc6 {[%emt 0:05:35]} 8. c3 {[%emt 0:01:49]} e5 {[%emt 0:07:51]} 9. Na3 {[%emt 0:02:52]} Ne8 {[%emt 0:03:46]} 10. Nd2 {[%emt 0:04:33]} f5 {[%emt 0:03:22]} 11. exf5 {[%emt 0:01:55]} Bxf5 {[%emt 0:00:30]} 12. Bd5+ {[%emt 0:00:16]} Kh8 {[%emt 0:00:14]} 13. Ne4 {[%emt 0:02:22]} Nc7 {[%emt 0:00:56]} 14. Bxc6 {[%emt 0:05:21]} bxc6 {[%emt 0:00:06]} 15. f4 {[%emt 0:02:06]} d5 {[%emt 0:06:52]} 16. Nf2 {[%emt 0:01:00]} exf4 {[%emt 0:01:52]} 17. Bxf4 {[%emt 0:00:19]} Qd7 {[%emt 0:01:04]} 18. Rae1 {[%emt 0:03:36]} Rae8 {[%emt 0:02:17]} 19. Qd2 {[%emt 0:00:35]} Ne6 {[%emt 0:00:53]} 20. Be5 {[%emt 0:02:57]} Ng5 {[%emt 0:04:30]} 21. Qd1 {[%emt 0:07:58]} d4 {[%emt 0:06:29]} 22. c4 {[%emt 0:05:31]} Bd8 {[%emt 0:13:53]} 23. Bf4 {[%emt 0:04:40]} Ne6 {[%emt 0:10:01]} 24. Bc1 {[%emt 0:04:50]} Ng5 {[%emt 0:06:29]} 25. Bf4 {[%emt 0:01:46]} Nf7 {[%emt 0:05:09]} 26. g4 {[%emt 0:05:15]} Be6 {[%emt 0:01:21]} 27. h3 {[%emt 0:01:58]} Bh4 {[%emt 0:12:42]} 28. Re2 {[%emt 0:02:56]} Nd6 {[%emt 0:03:35]} 29. Bxd6 {[%emt 0:03:54]} Qxd6 {[%emt 0:00:11]} 30. Ne4 {[%emt 0:00:15]} Qc7 {[%emt 0:00:38]} 31. Nb1 {[%emt 0:02:12]} Bf7 {[%emt 0:01:19]} 32. Rg2 {[%emt 0:01:19]} Bg6 {[%emt 0:00:21]} 33. Nbd2 {[%emt 0:00:42]} Rf4 {[%emt 0:00:54]} 34. Rf3 {[%emt 0:10:25]} Ref8 {[%emt 0:00:15]} 35. Qe2 {[%emt 0:01:25]} Bxe4 {[%emt 0:00:39]} 36. Qxe4 {[%emt 0:02:30]} Rxf3 {[%emt 0:00:38]} 37. Nxf3 {[%emt 0:00:11]} Bd8 {[%emt 0:00:41]} 38. Ne5 {[%emt 0:01:02]} Bg5 {[%emt 0:00:27]} 39. Re2 {[%emt 0:04:42]} Be3+ {[%emt 0:00:22]} 40. Kg2 {[%emt 0:00:25]} Qd8 {[%emt 0:00:50]} 41. Nf3 {[%emt 0:31:56]} Qf6 {[%emt 0:30:25]} 42. Re1 {[%emt 0:01:13]} Kg8 {[%emt 0:00:16]} 43. Rf1 {[%emt 0:00:17]} a6 {[%emt 0:00:52]} 44. Nh2 {[%emt 0:01:34]} Qd6 {[%emt 0:00:33]} 45. Rxf8+ {[%emt 0:00:53]} Qxf8 {[%emt 0:00:16]} 46. Nf3 {[%emt 0:00:10]} Qc8 {[%emt 0:00:36]} 47. Ne5 {[%emt 0:00:34]} Qf8 {[%emt 0:00:23]} 48. Qf3 {[%emt 0:00:23]} Qxf3+ {[%emt 0:00:51]} 49. Kxf3 {[%emt 0:00:06]} Kf8 {[%emt 0:00:15]} 50. Ke4 {[%emt 0:00:11]} Ke7 {[%emt 0:00:23]} 51. Nxc6+ {[%emt 0:00:46]} Kd6 {[%emt 0:00:15]} 52. Ne5 {[%emt 0:00:56]} Bc1 {[%emt 0:00:32]} 53. b3 {[%emt 0:00:08]} Ke6 {[%emt 0:00:13]} 54. h4 {[%emt 0:02:07]} Be3 {[%emt 0:00:24]} 55. Nf3 {[%emt 0:00:35]} h6 {[%emt 0:00:07]} 56. h5 {[%emt 0:01:12]} Bc1 {[%emt 0:00:25]} 57. Nh4 {[%emt 0:00:44]} Bg5 {[%emt 0:00:16]} 58. Ng6 {[%emt 0:01:06]} Bc1 {[%emt 0:00:25]} 59. Nf4+ {[%emt 0:02:02]} Kf6 {[%emt 0:01:04]} 60. Nd5+ {[%emt 0:00:14]} Kg5 {[%emt 0:00:28]} 61. Kf3 {[%emt 0:00:12]} Bd2 {[%emt 0:00:53]} 62. Nc7 {[%emt 0:00:14]} Kf6 {[%emt 0:00:48]} 63. Nxa6 {[%emt 0:00:10]} Ke5 {[%emt 0:00:12]} 64. Nxc5 {[%emt 0:00:22]} Bb4 {[%emt 0:00:19]} 65. Nd7+ {[%emt 0:00:17]} Ke6 {[%emt 0:00:12]} 66. Nb6 {[%emt 0:00:42]} Kd6 {[%emt 0:00:24]} 67. Nd5 {[%emt 0:00:07]} Bc5 {[%emt 0:00:09]} 68. Ke4 {[%emt 0:00:15]} Ba7 {[%emt 0:00:47]} 69. b4 {[%emt 0:00:04]} Kc6 {[%emt 0:00:22]} 70. a4 {[%emt 0:00:10]} Kd6 {[%emt 0:00:07]} 71. c5+ {[%emt 0:00:15]} Kc6 {[%emt 0:00:10]} 72. Kxd4 {[%emt 0:00:09] Kxd5+} 1-0

[Event "55th Rubinstein Memorial-C 2019"]
[Site "Polanica-Zdroj"]
[Date "2019.08.23"]
[Round "7.11"]
[White "Pyka, Roman"]
[Black "Rog, Bartlomiej"]
[Result "1-0"]
[ECO "E67"]
[WhiteElo "1860"]
[BlackElo "1540"]
[Annotator "NA"]
[PlyCount "121"]
[EventDate "2019.08.17"]
[EventType "swiss"]
[EventCountry "POL"]
[SourceTitle "playchess.com"]
[Source "ChessBase"]
[SourceQuality "1"]
[TimeControl "40/5400+30:1800+30"]

1. d4 {[%emt 0:00:06]} Nf6 {[%emt 0:00:00]} 2. Nf3 {[%emt 0:00:04]} g6 {[%emt 0:00:02]} 3. c4 {[%emt 0:00:10]} Bg7 {[%emt 0:00:11]} 4. Nc3 {[%emt 0:00:02]} O-O {[%emt 0:00:23]} 5. g3 {[%emt 0:00:13]} d6 {[%emt 0:00:18]} 6. Bg2 {[%emt 0:00:04]} Nbd7 {[%emt 0:00:23]} 7. O-O {[%emt 0:00:07]} e5 {[%emt 0:00:27]} 8. h3 {[%emt 0:00:11]} c6 {[%emt 0:00:45]} 9. e4 {[%emt 0:00:13]} exd4 {[%emt 0:00:51]} 10. Nxd4 {[%emt 0:01:32]} Nc5 {[%emt 0:00:44]} 11. Re1 {[%emt 0:02:03]} Re8 {[%emt 0:01:11]} 12. Bf4 {[%emt 0:05:24]} Nh5 {[%emt 0:03:12]} 13. Be3 {[%emt 0:00:35]} a6 {[%emt 0:20:12]} 14. Rc1 {[%emt 0:11:09]} Nf6 {[%emt 0:03:33]} 15. Bf4 {[%emt 0:08:30]} Nh5 {[%emt 0:01:57]} 16. Be3 {[%emt 0:02:37]} Nf6 {[%emt 0:00:35]} 17. Qc2 {[%emt 0:00:45]} Qe7 {[%emt 0:00:58]} 18. b4 {[%emt 0:03:23]} Ne6 {[%emt 0:03:21]} 19. Rcd1 {[%emt 0:05:40]} Bd7 {[%emt 0:10:03]} 20. c5 {[%emt 0:03:53]} dxc5 {[%emt 0:11:57]} 21. Nxe6 {[%emt 0:01:04]} Qxe6 {[%emt 0:00:17]} 22. bxc5 {[%emt 0:00:47]} Rad8 {[%emt 0:02:05]} 23. Rd6 {[%emt 0:02:13]} Qe7 {[%emt 0:12:37]} 24. Red1 {[%emt 0:05:33]} Bc8 {[%emt 0:03:38]} 25. e5 {[%emt 0:08:49]} Nd7 {[%emt 0:03:39]} 26. f4 {[%emt 0:00:38]} f6 {[%emt 0:00:29]} 27. Qb3+ {[%emt 0:07:27]} Kh8 {[%emt 0:01:04]} 28. Ne4 {[%emt 0:00:57]} fxe5 {[%emt 0:03:20]} 29. Ng5 {[%emt 0:00:50]} Rf8 {[%emt 0:00:10]} 30. Re6 {[%emt 0:01:00]} Nxc5 {[%emt 0:01:44]} 31. Rxe7 {[%emt 0:00:03]} Nxb3 {[%emt 0:00:15]} 32. Rxd8 {[%emt 0:00:12]} Rxd8 {[%emt 0:00:38]} 33. Nf7+ {[%emt 0:00:09]} Kg8 {[%emt 0:00:18]} 34. Nxd8 {[%emt 0:00:11]} exf4 {[%emt 0:00:11]} 35. Re8+ {[%emt 0:01:16]} Bf8 {[%emt 0:00:01]} 36. Bxf4 {[%emt 0:03:11]} Bd7 {[%emt 0:00:02]} 37. Rxf8+ {[%emt 0:00:19]} Kxf8 {[%emt 0:00:16]} 38. axb3 {[%emt 0:00:05]} Bc8 {[%emt 0:00:08]} 39. Nxc6 {[%emt 0:00:34]} bxc6 {[%emt 0:00:17]} 40. Bxc6 {[%emt 0:04:01]} Bxh3 {[%emt 0:00:08]} 41. Bd6+ {[%emt 0:30:09]} Kf7 {[%emt 0:30:25]} 42. Bb7 {[%emt 0:00:28]} Be6 {[%emt 0:00:20]} 43. b4 {[%emt 0:00:06]} Bc4 {[%emt 0:00:14]} 44. Bc8 {[%emt 0:00:09]} h5 {[%emt 0:00:52]} 45. Kf2 {[%emt 0:00:21]} g5 {[%emt 0:00:37]} 46. Ke3 {[%emt 0:00:11]} Ke8 {[%emt 0:02:04]} 47. Bc7 {[%emt 0:00:18]} Ke7 {[%emt 0:01:14]} 48. Kd4 {[%emt 0:00:19]} Be2 {[%emt 0:00:18]} 49. Kc5 {[%emt 0:00:21]} h4 {[%emt 0:01:05]} 50. g4 {[%emt 0:00:16]} Ke8 {[%emt 0:00:51]} 51. Kd6 {[%emt 0:00:43]} Kf7 {[%emt 0:01:20]} 52. Ke5 {[%emt 0:01:21]} Kg6 {[%emt 0:00:55]} 53. Bd7 {[%emt 0:01:00]} h3 {[%emt 0:00:39]} 54. Kd4 {[%emt 0:00:09]} Kf7 {[%emt 0:00:34]} 55. Ke3 {[%emt 0:00:32]} Bf1 {[%emt 0:01:24]} 56. Kf2 {[%emt 0:00:26]} Ke7 {[%emt 0:00:46]} 57. Bc8 {[%emt 0:00:17]} Bg2 {[%emt 0:00:46]} 58. Bxa6 {[%emt 0:00:18]} Kd7 {[%emt 0:00:02]} 59. Bb8 {[%emt 0:00:24]} Kc6 {[%emt 0:00:30]} 60. Be5 {[%emt 0:00:26]} Kb6 {[%emt 0:00:27]} 61. Bc4 {[%emt 0:00:10]} 1-0

[Event "55th Rubinstein Memorial-C 2019"]
[Site "Polanica-Zdroj"]
[Date "2019.08.23"]
[Round "7.12"]
[White "Rzenca, Jerzy"]
[Black "Bogdanov, Maxim A."]
[Result "0-1"]
[ECO "C42"]
[WhiteElo "1419"]
[BlackElo "1763"]
[Annotator "NA"]
[PlyCount "94"]
[EventDate "2019.08.17"]
[EventType "swiss"]
[EventCountry "POL"]
[SourceTitle "playchess.com"]
[Source "ChessBase"]
[SourceQuality "1"]
[TimeControl "40/5400+30:1800+30"]

1. e4 {[%emt 0:00:00]} e5 {[%emt 0:00:25]} 2. Nf3 {[%emt 0:00:00]} Nf6 {[%emt 0:00:13]} 3. Nxe5 {[%emt 0:00:00]} d6 {[%emt 0:00:06]} 4. Nf3 {[%emt 0:00:00]} Nxe4 {[%emt 0:00:07]} 5. Nc3 {[%emt 0:00:00]} Nxc3 {[%emt 0:00:07]} 6. dxc3 {[%emt 0:00:02]} Be7 {[%emt 0:00:06]} 7. Be3 {[%emt 0:00:07]} O-O {[%emt 0:00:08]} 8. Qd2 {[%emt 0:00:11]} c5 {[%emt 0:01:19]} 9. O-O-O {[%emt 0:01:47]} Nc6 {[%emt 0:00:16]} 10. Kb1 {[%emt 0:04:10]} Be6 {[%emt 0:07:15]} 11. Bd3 {[%emt 0:05:47]} Ne5 {[%emt 0:02:14]} 12. Nxe5 {[%emt 0:01:05]} dxe5 {[%emt 0:00:06]} 13. Qe2 {[%emt 0:00:09]} Qa5 {[%emt 0:04:44]} 14. c4 {[%emt 0:01:03]} Rae8 {[%emt 0:09:02]} 15. Bd2 {[%emt 0:08:20]} Qc7 {[%emt 0:01:00]} 16. Bc3 {[%emt 0:06:59]} Bd6 {[%emt 0:00:49]} 17. h4 {[%emt 0:01:10]} f5 {[%emt 0:02:08]} 18. f3 {[%emt 0:02:12]} Bd7 {[%emt 0:07:08]} 19. g4 {[%emt 0:02:43]} e4 {[%emt 0:02:30]} 20. fxe4 {[%emt 0:00:04]} fxg4 {[%emt 0:00:09]} 21. Rdf1 {[%emt 0:12:49]} Be5 {[%emt 0:01:45]} 22. Bxe5 {[%emt 0:06:35]} Qxe5 {[%emt 0:00:26]} 23. Qg2 {[%emt 0:02:45]} Rxf1+ {[%emt 0:03:01]} 24. Rxf1 {[%emt 0:00:44]} Rf8 {[%emt 0:00:06]} 25. a3 {[%emt 0:06:51]} Rxf1+ {[%emt 0:01:31]} 26. Bxf1 {[%emt 0:00:06]} Qf4 {[%emt 0:01:16]} 27. Qh1 {[%emt 0:13:58]} h5 {[%emt 0:03:59]} 28. Bg2 {[%emt 0:01:40]} Bc6 {[%emt 0:01:51]} 29. b3 {[%emt 0:06:10]} Kh7 {[%emt 0:04:30]} 30. Ka2 {[%emt 0:02:20]} b6 {[%emt 0:01:10]} 31. Kb1 {[%emt 0:00:18]} Kh6 {[%emt 0:00:23]} 32. Ka2 {[%emt 0:02:15]} g5 {[%emt 0:05:14]} 33. e5 {[%emt 0:05:05]} Bxg2 {[%emt 0:02:19]} 34. Qxg2 {[%emt 0:00:02]} Qxe5 {[%emt 0:00:29]} 35. Qc6+ {[%emt 0:00:09]} Kg7 {[%emt 0:00:17]} 36. Qd7+ {[%emt 0:01:00]} Kg6 {[%emt 0:00:16]} 37. Qc6+ {[%emt 0:04:11]} Kf5 {[%emt 0:01:22]} 38. Qd7+ {[%emt 0:00:33]} Kf4 {[%emt 0:09:45]} 39. Qd2+ {[%emt 0:00:46]} Qe3 {[%emt 0:01:53]} 40. Qh2+ {[%emt 0:02:51]} g3 {[%emt 0:00:26]} 41. Qg2 {[%emt 0:31:08]} gxh4 {[%emt 0:30:32]} 42. Qd5 {[%emt 0:00:17]} Qe4 {[%emt 0:00:52]} 43. Qxh5 {[%emt 0:00:23]} Ke3 {[%emt 0:00:22]} 44. Qh6+ {[%emt 0:00:35]} Kf2 {[%emt 0:00:16]} 45. Qd2+ {[%emt 0:00:10]} Kg1 {[%emt 0:00:19]} 46. Qd1+ {[%emt 0:00:18]} Kh2 {[%emt 0:00:11]} 47. Qd2+ {[%emt 0:00:10]} g2 {[%emt 0:01:15]} 0-1

[Event "55th Rubinstein Memorial-C 2019"]
[Site "Polanica-Zdroj"]
[Date "2019.08.23"]
[Round "7.13"]
[White "Werner, Kacper"]
[Black "Sypien, Natan"]
[Result "0-1"]
[ECO "B34"]
[WhiteElo "1435"]
[BlackElo "1819"]
[Annotator "NA"]
[PlyCount "110"]
[EventDate "2019.08.17"]
[EventType "swiss"]
[EventCountry "POL"]
[SourceTitle "playchess.com"]
[Source "ChessBase"]
[SourceQuality "1"]
[TimeControl "40/5400+30:1800+30"]

1. e4 {[%emt 0:00:00]} c5 {[%emt 0:00:00]} 2. Nf3 {[%emt 0:00:00]} Nc6 {[%emt 0:00:00]} 3. d4 {[%emt 0:00:01]} cxd4 {[%emt 0:00:00]} 4. Nxd4 {[%emt 0:00:20]} Nf6 {[%emt 0:00:00]} 5. Nc3 {[%emt 0:00:21]} e5 {[%emt 0:00:00]} 6. Ndb5 {[%emt 0:01:00]} d6 {[%emt 0:00:00]} 7. Nd5 {[%emt 0:00:10]} Nxd5 {[%emt 0:00:02]} 8. exd5 {[%emt 0:00:35]} Nb8 {[%emt 0:00:03]} 9. c4 {[%emt 0:00:45]} Be7 {[%emt 0:00:33]} 10. Be3 {[%emt 0:01:46]} a6 {[%emt 0:01:22]} 11. Nc3 {[%emt 0:00:14]} O-O {[%emt 0:00:06]} 12. Be2 {[%emt 0:01:57]} Nd7 {[%emt 0:00:18]} 13. O-O {[%emt 0:01:46]} f5 {[%emt 0:00:01]} 14. f3 {[%emt 0:01:31]} Bg5 {[%emt 0:04:40]} 15. Qd2 {[%emt 0:05:40]} Bxe3+ {[%emt 0:10:48]} 16. Qxe3 {[%emt 0:00:11]} a5 {[%emt 0:05:22]} 17. b3 {[%emt 0:08:20]} Nc5 {[%emt 0:01:30]} 18. Rab1 {[%emt 0:01:53]} f4 {[%emt 0:02:21]} 19. Qf2 {[%emt 0:00:58]} Bf5 {[%emt 0:00:12]} 20. Rb2 {[%emt 0:00:45]} g5 {[%emt 0:09:49]} 21. a3 {[%emt 0:03:06]} h5 {[%emt 0:00:02]} 22. b4 {[%emt 0:00:28]} Nd3 {[%emt 0:02:25]} 23. Bxd3 {[%emt 0:03:01]} Bxd3 {[%emt 0:00:03]} 24. Rc1 {[%emt 0:00:30]} Bxc4 {[%emt 0:00:35]} 25. bxa5 {[%emt 0:07:15]} Bd3 {[%emt 0:23:31]} 26. Rxb7 {[%emt 0:00:59]} Qxa5 {[%emt 0:02:02]} 27. Qd2 {[%emt 0:02:53]} Qc5+ {[%emt 0:05:12]} 28. Kh1 {[%emt 0:02:01]} Qxa3 {[%emt 0:00:03]} 29. Re1 {[%emt 0:05:20]} Bf5 {[%emt 0:02:47]} 30. Rc7 {[%emt 0:08:26]} Qa5 {[%emt 0:02:09]} 31. Rc6 {[%emt 0:02:04]} Rfc8 {[%emt 0:09:45]} 32. Rc1 {[%emt 0:00:26]} Rab8 {[%emt 0:01:42]} 33. h3 {[%emt 0:05:37]} Qb4 {[%emt 0:04:42]} 34. Kh2 {[%emt 0:03:04]} Bd7 {[%emt 0:01:51]} 35. Rxc8+ {[%emt 0:01:40]} Rxc8 {[%emt 0:00:08]} 36. Ne4 {[%emt 0:00:21]} Qxd2 {[%emt 0:00:28]} 37. Rxc8+ {[%emt 0:00:08]} Bxc8 {[%emt 0:00:05]} 38. Nxd2 {[%emt 0:00:02]} Kf7 {[%emt 0:02:47]} 39. Ne4 {[%emt 0:02:23]} Ke7 {[%emt 0:00:03]} 40. Nxg5 {[%emt 0:01:42]} Bb7 {[%emt 0:00:03]} 41. Ne4 {[%emt 0:34:14]} Bxd5 {[%emt 0:30:03]} 42. Nd2 {[%emt 0:00:05]} Kd7 {[%emt 0:01:27]} 43. g4 {[%emt 0:00:26]} hxg4 {[%emt 0:00:58]} 44. hxg4 {[%emt 0:00:24]} Ke6 {[%emt 0:02:08]} 45. Kg2 {[%emt 0:00:29]} Bc6 {[%emt 0:00:45]} 46. g5 {[%emt 0:02:25]} Bd5 {[%emt 0:03:16]} 47. Kh3 {[%emt 0:00:47]} Kf5 {[%emt 0:00:41]} 48. Kh4 {[%emt 0:00:13]} Kg6 {[%emt 0:00:05]} 49. Kg4 {[%emt 0:00:49]} Be6+ {[%emt 0:00:01]} 50. Kh4 {[%emt 0:00:23]} d5 {[%emt 0:00:01]} 51. Nc4 {[%emt 0:00:56]} e4 {[%emt 0:03:00]} 52. fxe4 {[%emt 0:01:33]} dxe4 {[%emt 0:00:02]} 53. Ne5+ {[%emt 0:01:15]} Kf5 {[%emt 0:00:26]} 54. Nc6 {[%emt 0:00:31]} e3 {[%emt 0:00:59]} 55. Kh5 {[%emt 0:01:04]} Ke4 {[%emt 0:01:03]} 0-1

[Event "55th Rubinstein Memorial-C 2019"]
[Site "Polanica-Zdroj"]
[Date "2019.08.23"]
[Round "7.14"]
[White "Matuszczyk, Mateusz"]
[Black "Rylski, Tadeusz"]
[Result "1/2-1/2"]
[ECO "B90"]
[WhiteElo "1808"]
[BlackElo "1616"]
[Annotator "NA"]
[PlyCount "123"]
[EventDate "2019.08.17"]
[EventType "swiss"]
[EventCountry "POL"]
[SourceTitle "playchess.com"]
[Source "ChessBase"]
[SourceQuality "1"]
[TimeControl "40/5400+30:1800+30"]

1. e4 {[%emt 0:00:00]} c5 {[%emt 0:00:00]} 2. Nf3 {[%emt 0:00:00]} d6 {[%emt 0:00:00]} 3. d4 {[%emt 0:00:00]} cxd4 {[%emt 0:00:00]} 4. Nxd4 {[%emt 0:00:00]} Nf6 {[%emt 0:00:04]} 5. Nc3 {[%emt 0:00:00]} a6 {[%emt 0:00:07]} 6. a4 {[%emt 0:01:05]} e5 {[%emt 0:02:24]} 7. Nb3 {[%emt 0:03:12]} Be7 {[%emt 0:05:03]} 8. Be2 {[%emt 0:02:30]} Qc7 {[%emt 0:01:26]} 9. O-O {[%emt 0:00:25]} O-O {[%emt 0:00:16]} 10. Be3 {[%emt 0:00:21]} Be6 {[%emt 0:02:02]} 11. Nd5 {[%emt 0:09:22]} Nxd5 {[%emt 0:02:44]} 12. exd5 {[%emt 0:00:01]} Bf5 {[%emt 0:01:17]} 13. c3 {[%emt 0:00:49]} Nd7 {[%emt 0:00:40]} 14. a5 {[%emt 0:08:22]} Rab8 {[%emt 0:11:37]} 15. Nd2 {[%emt 0:03:16]} Bg6 {[%emt 0:03:58]} 16. Nc4 {[%emt 0:01:20]} f5 {[%emt 0:01:05]} 17. f4 {[%emt 0:00:36]} e4 {[%emt 0:00:52]} 18. g4 {[%emt 0:06:32]} Nf6 {[%emt 0:05:51]} 19. g5 {[%emt 0:03:56]} Nd7 {[%emt 0:13:33]} 20. Nb6 {[%emt 0:05:10]} Nxb6 {[%emt 0:05:49]} 21. axb6 {[%emt 0:00:17]} Qc8 {[%emt 0:01:55]} 22. c4 {[%emt 0:03:16]} h6 {[%emt 0:02:37]} 23. h4 {[%emt 0:00:57]} hxg5 {[%emt 0:02:54]} 24. hxg5 {[%emt 0:00:00]} Kf7 {[%emt 0:01:08]} 25. Kg2 {[%emt 0:06:27]} Rh8 {[%emt 0:00:33]} 26. b4 {[%emt 0:09:31]} Qd7 {[%emt 0:06:02]} 27. Qb3 {[%emt 0:03:08]} Bh5 {[%emt 0:07:10]} 28. Bxh5+ {[%emt 0:01:02]} Rxh5 {[%emt 0:00:06]} 29. c5 {[%emt 0:01:14]} Rbh8 {[%emt 0:01:13]} 30. c6 {[%emt 0:05:21]} Qe8 {[%emt 0:05:47]} 31. Rh1 {[%emt 0:04:40]} Bd8 {[%emt 0:05:11]} 32. Rxh5 {[%emt 0:03:17]} Rxh5 {[%emt 0:00:14]} 33. Rh1 {[%emt 0:01:02]} Rxh1 {[%emt 0:02:17]} 34. Kxh1 {[%emt 0:00:01]} Ke7 {[%emt 0:03:00]} 35. cxb7 {[%emt 0:06:26]} Qh5+ {[%emt 0:00:52]} 36. Kg2 {[%emt 0:00:03]} Qf3+ {[%emt 0:00:17]} 37. Kh2 {[%emt 0:09:12]} Qe2+ {[%emt 0:01:36]} 38. Kg1 {[%emt 0:00:17]} Qe1+ {[%emt 0:00:28]} 39. Kg2 {[%emt 0:00:03]} Qe2+ {[%emt 0:00:12]} 40. Bf2 {[%emt 0:02:44]} Bxb6 {[%emt 0:00:18]} 41. Qg3 {[%emt 0:31:54]} Ba7 {[%emt 0:30:28]} 42. Kg1 {[%emt 0:01:54]} e3 {[%emt 0:02:09]} 43. Be1 {[%emt 0:00:44]} Qb5 {[%emt 0:00:49]} 44. Qf3 {[%emt 0:00:42]} Qxb7 {[%emt 0:00:39]} 45. Kg2 {[%emt 0:00:28]} Qc7 {[%emt 0:00:57]} 46. Qe2 {[%emt 0:00:20]} Qb7 {[%emt 0:00:53]} 47. Qd3 {[%emt 0:00:23]} g6 {[%emt 0:00:32]} 48. Bc3 {[%emt 0:00:39]} Qb5 {[%emt 0:00:47]} 49. Bf6+ {[%emt 0:00:22]} Kd7 {[%emt 0:00:41]} 50. Qxb5+ {[%emt 0:00:55]} axb5 {[%emt 0:00:06]} 51. Kf3 {[%emt 0:00:02]} Kc7 {[%emt 0:00:55]} 52. Ke2 {[%emt 0:00:05]} Kd7 {[%emt 0:00:50]} 53. Kd3 {[%emt 0:00:17]} Kc7 {[%emt 0:00:15]} 54. Bc3 {[%emt 0:00:31]} Kd7 {[%emt 0:00:27]} 55. Be1 {[%emt 0:00:10]} Bb6 {[%emt 0:00:30]} 56. Bg3 {[%emt 0:00:13]} Ke7 {[%emt 0:00:16]} 57. Bh2 {[%emt 0:00:23]} Kd7 {[%emt 0:00:09]} 58. Bg3 {[%emt 0:00:32]} Ke7 {[%emt 0:00:59]} 59. Be1 {[%emt 0:00:04]} Kd7 {[%emt 0:00:10]} 60. Bc3 {[%emt 0:00:09]} Ke7 {[%emt 0:00:44]} 61. Bf6+ {[%emt 0:00:02]} Kd7 {[%emt 0:00:14]} 62. Bc3 1/2-1/2

[Event "55th Rubinstein Memorial-C 2019"]
[Site "Polanica-Zdroj"]
[Date "2019.08.23"]
[Round "7.15"]
[White "Koscielny, Edmond"]
[Black "Raczek, Krzysztof"]
[Result "1-0"]
[ECO "A02"]
[WhiteElo "1841"]
[BlackElo "1587"]
[Annotator "NA"]
[PlyCount "93"]
[EventDate "2019.08.17"]
[EventType "swiss"]
[EventCountry "POL"]
[SourceTitle "playchess.com"]
[Source "ChessBase"]
[SourceQuality "1"]
[TimeControl "40/5400+30:1800+30"]

1. f4 {[%emt 0:00:00]} c5 {[%emt 0:00:00]} 2. Nf3 {[%emt 0:00:00]} g6 {[%emt 0:00:05]} 3. e3 {[%emt 0:00:00]} Bg7 {[%emt 0:00:04]} 4. Be2 {[%emt 0:00:05]} Nc6 {[%emt 0:00:22]} 5. O-O {[%emt 0:00:20]} d6 {[%emt 0:01:39]} 6. Nc3 {[%emt 0:03:07]} e6 {[%emt 0:00:19]} 7. d3 {[%emt 0:03:09]} Nge7 {[%emt 0:00:32]} 8. a3 {[%emt 0:00:41]} Rb8 {[%emt 0:00:09]} 9. Qe1 {[%emt 0:00:41]} b5 {[%emt 0:01:02]} 10. Ne4 {[%emt 0:05:32]} b4 {[%emt 0:13:06]} 11. a4 {[%emt 0:01:04]} Ba6 {[%emt 0:00:25]} 12. Ng3 {[%emt 0:04:29]} Qd7 {[%emt 0:03:31]} 13. e4 {[%emt 0:01:50]} Nd4 {[%emt 0:00:45]} 14. Nxd4 {[%emt 0:01:08]} Bxd4+ {[%emt 0:00:11]} 15. Kh1 {[%emt 0:00:09]} Nc6 {[%emt 0:02:11]} 16. f5 {[%emt 0:03:01]} O-O {[%emt 0:02:03]} 17. f6 {[%emt 0:00:23]} Qd8 {[%emt 0:00:09]} 18. Nh5 {[%emt 0:02:48]} Kh8 {[%emt 0:00:37]} 19. Bh6 {[%emt 0:01:56]} Bxb2 {[%emt 0:07:48]} 20. Bg7+ {[%emt 0:04:53]} Kg8 {[%emt 0:00:07]} 21. Qd2 {[%emt 0:00:48]} e5 {[%emt 0:09:00]} 22. Qh6 {[%emt 0:01:19]} Nd4 {[%emt 0:00:23]} 23. Bg4 {[%emt 0:00:48]} Ne6 {[%emt 0:00:30]} 24. Bxe6 {[%emt 0:04:59]} fxe6 {[%emt 0:00:05]} 25. f7+ {[%emt 0:00:39]} Rxf7 {[%emt 0:00:08]} 26. Rxf7 {[%emt 0:00:24]} Kxf7 {[%emt 0:01:35]} 27. Rf1+ {[%emt 0:00:17]} Ke8 {[%emt 0:00:55]} 28. Rf8+ {[%emt 0:00:20]} Kd7 {[%emt 0:00:06]} 29. Rxd8+ {[%emt 0:00:59]} Kxd8 {[%emt 0:00:19]} 30. Qg5+ {[%emt 0:01:40]} Kd7 {[%emt 0:00:22]} 31. Nf6+ {[%emt 0:00:45]} Kc6 {[%emt 0:00:05]} 32. Ng4 {[%emt 0:03:03]} Bxd3 {[%emt 0:01:39]} 33. cxd3 {[%emt 0:02:20]} Bd4 {[%emt 0:00:11]} 34. Bxe5 {[%emt 0:02:39]} dxe5 {[%emt 0:00:35]} 35. Nxe5+ {[%emt 0:00:45]} Kd6 {[%emt 0:01:49]} 36. Nc4+ {[%emt 0:00:53]} Kd7 {[%emt 0:00:07]} 37. Qf4 {[%emt 0:01:16]} Re8 {[%emt 0:03:20]} 38. Qd6+ {[%emt 0:00:30]} Kc8 {[%emt 0:00:05]} 39. Qc6+ {[%emt 0:02:01]} Kd8 {[%emt 0:00:06]} 40. Qa8+ {[%emt 0:01:35]} Ke7 {[%emt 0:00:07]} 41. Qxa7+ {[%emt 0:30:59]} Kf6 {[%emt 0:30:14]} 42. Qxh7 {[%emt 0:04:24]} Re7 {[%emt 0:05:58]} 43. e5+ {[%emt 0:03:34]} Bxe5 {[%emt 0:00:04]} 44. Qh8+ {[%emt 0:00:11]} Rg7 {[%emt 0:00:10]} 45. Nxe5 {[%emt 0:00:43]} b3 {[%emt 0:00:07]} 46. Qf8+ {[%emt 0:01:27]} Kxe5 {[%emt 0:00:16]} 47. Qxg7+ 1-0